bitfinex/quotes_BTCUSD_20221001
["timestamp","ask_amount","ask_price","bid_price","bid_amount"]
[1664636268935,0.5526704,19324.0,19323.0,0.40643085]
[1664636269173,0.9105664,19324.0,19323.0,0.61305272]
[1664636269398,0.9105664,19324.0,19323.0,0.77815391]
[1664636269848,0.5526704,19324.0,19323.0,0.77815391]
[1664636270329,0.5116704,19324.0,19323.0,0.82815391]
[1664636270564,0.5116704,19324.0,19323.0,1.3669211]
[1664636270789,0.5116704,19324.0,19323.0,1.0090251]
[1664636271017,0.5526704,19324.0,19323.0,1.0090251]
[1664636271504,0.5526704,19324.0,19323.0,0.82815391]
[1664636271959,0.5526704,19324.0,19323.0,0.87815391]
[1664636272174,0.5116704,19324.0,19323.0,0.82815391]
[1664636272416,0.5116704,19324.0,19323.0,0.87815391]
[1664636272903,0.5906704,19324.0,19323.0,0.87815391]
[1664636274248,0.5116704,19324.0,19323.0,0.87815391]
[1664636275012,0.5526704,19324.0,19323.0,0.87815391]
[1664636275923,0.5526704,19324.0,19323.0,1.23604991]
[1664636276147,0.5116704,19324.0,19323.0,0.87815391]
[1664636276369,0.5116704,19324.0,19323.0,0.82815391]
[1664636276604,0.5116704,19324.0,19323.0,0.87815391]
[1664636277041,0.5116704,19324.0,19323.0,1.83072842]
[1664636277042,0.041,19324.0,19323.0,1.83072842]
[1664636277274,0.04092896,19324.0,19323.0,1.0190251]
[1664636277437,0.04092896,19324.0,19323.0,1.0690251]
[1664636277696,0.04092896,19324.0,19323.0,0.77815391]
[1664636277880,0.04092896,19324.0,19323.0,0.82815391]
[1664636278283,0.04092896,19324.0,19323.0,0.77815391]
[1664636278472,0.86962744,19326.0,19325.0,0.38360172]
[1664636278689,0.97816422,19326.0,19325.0,0.54870291]
[1664636278899,1.02016422,19326.0,19325.0,0.54870291]
[1664636279145,1.32016422,19326.0,19325.0,0.54870291]
[1664636280281,1.27816422,19326.0,19325.0,0.54870291]
[1664636280464,1.16962744,19326.0,19325.0,0.54870291]
[1664636280850,1.22162744,19326.0,19325.0,0.54870291]
[1664636281670,2.12714144,19326.0,19325.0,0.54870291]
[1664636283058,2.16914144,19326.0,19325.0,0.54870291]
[1664636284468,2.07514144,19326.0,19325.0,0.54870291]
[1664636285124,2.11714144,19326.0,19325.0,0.54870291]
[1664636286221,2.07514144,19326.0,19325.0,0.54870291]
[1664636287020,2.11314144,19326.0,19325.0,0.54870291]
[1664636288376,2.07514144,19326.0,19325.0,0.54870291]
[1664636289018,2.11714144,19326.0,19325.0,0.54870291]
[1664636290421,2.07514144,19326.0,19325.0,0.54870291]
[1664636290987,2.11714144,19326.0,19325.0,0.54870291]
[1664636291898,1.45924544,19326.0,19325.0,0.54870291]
[1664636292126,1.41724544,19326.0,19325.0,0.54870291]
[1664636292340,2.07514144,19326.0,19325.0,0.54870291]
[1664636293014,2.11714144,19326.0,19325.0,0.54870291]
[1664636294177,2.07514144,19326.0,19325.0,0.54870291]
[1664636295011,1.85414144,19326.0,19325.0,0.54870291]
[1664636295398,1.49624544,19326.0,19325.0,0.54870291]
[1664636295711,2.15414144,19326.0,19325.0,0.54870291]
[1664636296316,1.71724544,19326.0,19325.0,0.54870291]
[1664636296526,2.07514144,19326.0,19325.0,0.54870291]
[1664636297044,2.11714144,19326.0,19325.0,0.54870291]
[1664636298403,2.07514144,19326.0,19325.0,0.54870291]
[1664636299003,2.12714144,19326.0,19325.0,0.54870291]
[1664636299606,1.76924544,19326.0,19325.0,0.54870291]
[1664636300066,2.12714144,19326.0,19325.0,0.54870291]
[1664636300294,2.07514144,19326.0,19325.0,0.54870291]
[1664636300969,2.12714144,19326.0,19325.0,0.54870291]
[1664636302323,2.77616354,19326.0,19325.0,0.16510119]
[1664636302542,2.77616354,19326.0,19324.0,0.64248872]
[1664636302543,3.29360054,19326.0,19324.0,0.80758991]
[1664636302757,1.16962744,19325.0,19324.0,0.80758991]
[1664636303046,1.16962744,19325.0,19324.0,0.42398819]
[1664636304469,1.26553876,19325.0,19324.0,0.42398819]
[1664636304720,1.16962744,19325.0,19324.0,0.42398819]
[1664636304940,1.16962744,19325.0,19324.0,0.42299419]
[1664636305168,0.94862744,19325.0,19324.0,0.42299419]
[1664636305408,0.59073144,19325.0,19324.0,0.42299419]
[1664636306111,0.94862744,19325.0,19324.0,0.42299419]
[1664636306323,0.51173144,19325.0,19324.0,0.42299419]
[1664636307167,0.56673144,19325.0,19324.0,0.42299419]
[1664636307814,0.92462744,19325.0,19324.0,0.42299419]
[1664636308071,0.56673144,19325.0,19324.0,0.42299419]
[1664636308227,0.51173144,19325.0,19324.0,0.42299419]
[1664636308919,0.51173144,19325.0,19324.0,0.80659591]
[1664636309098,0.59073144,19325.0,19324.0,0.80659591]
[1664636310522,0.51173144,19325.0,19324.0,0.80659591]
[1664636311211,0.55573144,19325.0,19324.0,0.80659591]
[1664636312711,0.51173144,19325.0,19324.0,0.85659591]
[1664636312955,0.51173144,19325.0,19324.0,1.4001515]
[1664636313176,0.51173144,19326.0,19325.0,0.3836653]
[1664636313398,0.51173144,19326.0,19325.0,0.7415613]
[1664636313692,0.51173144,19326.0,19325.0,1.50779746]
[1664636313914,0.51173144,19326.0,19325.0,0.69609414]
[1664636314145,0.51173144,19326.0,19325.0,1.59609414]
[1664636314398,0.51173144,19326.0,19325.0,0.54876649]
[1664636314611,0.86962744,19326.0,19325.0,0.54876649]
[1664636314839,0.51173144,19326.0,19325.0,0.54876649]
[1664636315072,0.51173144,19326.0,19325.0,0.90666249]
[1664636315277,0.58073144,19326.0,19325.0,0.54876649]
[1664636316457,0.51173144,19326.0,19325.0,0.54876649]
[1664636317129,0.56373144,19326.0,19325.0,0.54876649]
[1664636318027,0.56373144,19326.0,19325.0,0.3836653]
[1664636318236,0.56373144,19326.0,19325.0,0.54873369]
[1664636318458,0.51173144,19326.0,19325.0,0.54873369]
[1664636319138,0.56362894,19326.0,19325.0,1.00254101]
[1664636319352,0.56362894,19326.0,19325.0,0.54873369]
[1664636320787,0.51162894,19326.0,19325.0,0.54873369]
[1664636321013,0.58062894,19326.0,19325.0,0.54873369]
[1664636322403,0.51162894,19326.0,19325.0,0.54873369]
[1664636322614,0.51162894,19326.0,19325.0,0.69272139]
[1664636323046,0.51162894,19326.0,19325.0,1.05061739]
[1664636323265,0.56362894,19326.0,19325.0,0.69272139]
[1664636324771,0.51162894,19326.0,19325.0,0.69272139]
[1664636325229,0.56362894,19326.0,19325.0,0.69272139]
[1664636326397,0.51162894,19326.0,19325.0,0.69272139]
[1664636326838,0.51162894,19326.0,19325.0,1.05061739]
[1664636327170,0.56362894,19326.0,19325.0,1.05061739]
[1664636327382,0.052,19326.0,19325.0,1.05061739]
[1664636328363,0.64108444,19327.0,19326.0,0.38360172]
[1664636328575,0.64108444,19327.0,19326.0,0.43360172]
[1664636328874,0.64108444,19327.0,19326.0,0.54867011]
[1664636329097,0.51173144,19327.0,19326.0,0.54867011]
[1664636329325,0.51173144,19327.0,19326.0,0.98732688]
[1664636329326,0.57373144,19327.0,19326.0,0.98732688]
[1664636329555,0.57373144,19327.0,19326.0,0.81960088]
[1664636330025,0.57373144,19327.0,19326.0,1.17749688]
[1664636330294,0.062,19327.0,19326.0,1.6113442]
[1664636330532,0.24182647,19332.0,19331.0,0.38360172]
[1664636330533,0.10130883,19332.0,19331.0,0.38360172]
[1664636330755,0.51173144,19332.0,19331.0,0.43360172]
[1664636330984,0.51173144,19332.0,19331.0,0.38360172]
[1664636331203,0.55073144,19332.0,19331.0,0.38360172]
[1664636331422,0.55073144,19332.0,19331.0,0.95164981]
[1664636331660,0.039,19332.0,19331.0,0.99590849]
[1664636332565,0.42840353,19336.0,19335.0,0.38360172]
[1664636332795,1.29803097,19336.0,19335.0,0.38360172]
[1664636333248,1.33903097,19336.0,19335.0,0.38360172]
[1664636333478,0.95115097,19336.0,19335.0,0.38360172]
[1664636333702,0.95115097,19336.0,19335.0,0.37860172]
[1664636334002,0.55273144,19336.0,19335.0,0.37860172]
[1664636334211,1.03991944,19336.0,19335.0,0.37860172]
[1664636334442,0.99891944,19336.0,19335.0,0.37860172]
[1664636334658,1.25750444,19336.0,19335.0,0.37860172]
[1664636334880,1.46294179,19336.0,19335.0,0.37860172]
[1664636335108,1.76294179,19336.0,19335.0,0.37860172]
[1664636335352,1.80394179,19336.0,19335.0,0.37860172]
[1664636335814,1.44604579,19336.0,19335.0,0.37860172]
[1664636336042,1.80394179,19336.0,19335.0,0.37860172]
[1664636336264,1.59850444,19336.0,19335.0,0.37860172]
[1664636336530,1.19960844,19336.0,19335.0,0.37860172]
[1664636336969,1.55750444,19336.0,19335.0,0.37860172]
[1664636337187,1.59850444,19336.0,19335.0,0.37860172]
[1664636337417,1.83804179,19336.0,19335.0,0.37860172]
[1664636338530,1.79704179,19336.0,19335.0,0.37860172]
[1664636339301,1.59850444,19336.0,19335.0,0.37860172]
[1664636340390,1.24060844,19336.0,19335.0,0.37860172]
[1664636340631,1.55750444,19336.0,19335.0,0.37860172]
[1664636341303,1.59850444,19336.0,19335.0,0.37860172]
[1664636341531,2.35521179,19336.0,19335.0,0.37860172]
[1664636342875,0.472346,19335.0,19334.0,0.129376]
[1664636343134,1.28407744,19335.0,19334.0,0.129376]
[1664636343365,1.28407744,19335.0,19332.0,0.1]
[1664636343582,1.60754344,19334.0,19333.0,0.129383]
[1664636343796,2.25317418,19334.0,19333.0,0.129383]
[1664636345368,2.31857418,19334.0,19330.0,0.129404]
[1664636345601,0.357896,19332.0,19331.0,0.1294]
[1664636345822,1.16962744,19332.0,19331.0,0.1294]
[1664636346964,1.16962744,19332.0,19331.0,0.1293013]
[1664636347179,1.21162744,19332.0,19331.0,0.1293013]
[1664636348530,1.16962744,19332.0,19331.0,0.1293013]
[1664636348745,1.50073556,19332.0,19331.0,0.1293013]
[1664636349197,1.54773556,19332.0,19331.0,0.1293013]
[1664636350544,1.50073556,19332.0,19331.0,0.1293013]
[1664636351235,1.54773556,19332.0,19331.0,0.1293013]
[1664636352909,1.50073556,19332.0,19331.0,0.1293013]
[1664636353353,1.54773556,19332.0,19331.0,0.1293013]
[1664636354588,1.50073556,19332.0,19331.0,0.1293013]
[1664636355239,1.54773556,19332.0,19331.0,0.1293013]
[1664636356619,2.00154288,19332.0,19331.0,0.1293013]
[1664636356832,1.95454288,19332.0,19331.0,0.1293013]
[1664636357306,2.01654288,19332.0,19331.0,0.1293013]
[1664636358633,1.96194288,19332.0,19328.0,1.2427]
[1664636358850,2.76076992,19331.0,19328.0,1.2427]
[1664636359083,0.86962744,19330.0,19328.0,1.2427]
[1664636359299,1.31993381,19331.0,19329.0,0.129415]
[1664636359604,0.357896,19330.0,19329.0,0.129415]
[1664636359826,0.4883407,19330.0,19329.0,0.129415]
[1664636359952,0.7883407,19330.0,19329.0,0.129415]
[1664636361298,1.81387946,19330.0,19329.0,0.129415]
[1664636362220,1.00217614,19330.0,19329.0,0.129415]
[1664636362462,0.94217614,19330.0,19329.0,0.129415]
[1664636362669,1.30007214,19330.0,19329.0,0.129415]
[1664636363359,1.36007214,19330.0,19329.0,0.129415]
[1664636364165,1.81387946,19330.0,19329.0,0.129415]
[1664636364490,1.30007214,19330.0,19329.0,0.129415]
[1664636364772,0.94217614,19330.0,19329.0,0.129415]
[1664636364959,1.30007214,19330.0,19329.0,0.129415]
[1664636365173,0.94217614,19330.0,19329.0,0.129415]
[1664636365394,1.00217614,19330.0,19329.0,0.129415]
[1664636365611,1.36007214,19330.0,19329.0,0.129415]
[1664636366592,1.30007214,19330.0,19329.0,0.129415]
[1664636367050,1.33882899,19330.0,19329.0,0.129415]
[1664636367290,1.39882899,19330.0,19329.0,0.129415]
[1664636368209,1.04093299,19330.0,19329.0,0.129415]
[1664636368630,1.33882899,19330.0,19329.0,0.129415]
[1664636369202,1.04093299,19330.0,19329.0,0.129415]
[1664636369416,1.39882899,19330.0,19329.0,0.129415]
[1664636369662,1.36007214,19330.0,19329.0,0.129415]
[1664636370136,1.00217614,19330.0,19329.0,0.129415]
[1664636370508,1.30007214,19330.0,19329.0,0.12935385]
[1664636371191,0.94217614,19330.0,19329.0,0.12935385]
[1664636371408,1.00217614,19330.0,19329.0,0.12935385]
[1664636371858,1.36007214,19330.0,19329.0,0.12935385]
[1664636372778,1.30007214,19330.0,19329.0,0.12935385]
[1664636373451,1.36007214,19330.0,19329.0,0.12935385]
[1664636373663,1.00217614,19330.0,19329.0,0.12935385]
[1664636373888,1.36007214,19330.0,19329.0,0.12935385]
[1664636374545,1.30007214,19330.0,19329.0,0.12935385]
[1664636374928,0.51173144,19330.0,19329.0,0.12935385]
[1664636375375,0.55773144,19330.0,19329.0,0.12935385]
[1664636376190,0.55773144,19330.0,19329.0,0.50795557]
[1664636376628,0.51173144,19330.0,19329.0,0.50795557]
[1664636377264,0.51173144,19330.0,19329.0,0.86585157]
[1664636377395,0.55773144,19330.0,19329.0,0.50795557]
[1664636378510,0.51173144,19330.0,19329.0,0.50795557]
[1664636379386,0.55773144,19330.0,19329.0,0.86585157]
[1664636379769,0.55773144,19330.0,19329.0,0.96537883]
[1664636380049,0.91562744,19330.0,19329.0,0.60748283]
[1664636380265,0.55773144,19330.0,19329.0,0.65748283]
[1664636380486,0.55773144,19330.0,19329.0,0.55795557]
[1664636380698,0.91562744,19330.0,19329.0,0.50795557]
[1664636380916,0.91562744,19330.0,19329.0,0.55795557]
[1664636380917,0.51173144,19330.0,19329.0,0.55795557]
[1664636381389,0.91062744,19330.0,19329.0,0.55795557]
[1664636381598,0.55273144,19330.0,19329.0,0.50795557]
[1664636382626,0.51173144,19330.0,19329.0,0.55795557]
[1664636383127,0.51173144,19330.0,19329.0,0.50795557]
[1664636383347,0.91562744,19330.0,19329.0,0.50795557]
[1664636383574,0.55773144,19330.0,19329.0,0.50795557]
[1664636384709,0.51173144,19330.0,19329.0,0.50795557]
[1664636385411,0.91562744,19330.0,19329.0,0.50795557]
[1664636385636,0.55773144,19330.0,19329.0,0.50795557]
[1664636386089,0.91562744,19330.0,19329.0,0.50795557]
[1664636386768,0.51173144,19330.0,19329.0,0.50795557]
[1664636387000,1.16962744,19330.0,19329.0,0.50795557]
[1664636387216,0.81173144,19330.0,19329.0,0.50795557]
[1664636387437,0.57173144,19330.0,19329.0,0.50795557]
[1664636388590,0.51173144,19330.0,19329.0,0.50795557]
[1664636388802,0.81173144,19330.0,19329.0,0.50795557]
[1664636389495,0.87173144,19330.0,19329.0,0.50795557]
[1664636389708,0.87173144,19330.0,19329.0,0.50784104]
[1664636390143,1.22962744,19330.0,19329.0,0.50784104]
[1664636390415,1.97372393,19330.0,19329.0,0.50784104]
[1664636390634,1.91372393,19330.0,19329.0,0.50784104]
[1664636391076,1.55582793,19330.0,19329.0,0.50784104]
[1664636391299,1.10202061,19330.0,19329.0,0.50784104]
[1664636391534,1.5578015,19330.0,19329.0,0.50784104]
[1664636391963,1.1999055,19330.0,19329.0,0.50784104]
[1664636392647,1.45991661,19330.0,19329.0,0.50784104]
[1664636392858,1.10202061,19330.0,19329.0,0.50784104]
[1664636393557,1.16202061,19330.0,19329.0,0.50784104]
[1664636393759,1.51991661,19330.0,19329.0,0.50784104]
[1664636393892,1.16202061,19330.0,19329.0,0.50784104]
[1664636394609,1.10202061,19330.0,19329.0,0.50784104]
[1664636395538,1.16202061,19330.0,19329.0,0.50784104]
[1664636395764,1.61582793,19330.0,19329.0,0.50784104]
[1664636395983,1.16202061,19330.0,19329.0,0.50784104]
[1664636396890,1.10202061,19330.0,19329.0,0.50784104]
[1664636397109,0.81173144,19330.0,19329.0,0.50784104]
[1664636397538,0.87173144,19330.0,19329.0,0.50784104]
[1664636397739,1.22962744,19330.0,19329.0,0.50784104]
[1664636398451,0.87173144,19330.0,19329.0,0.50784104]
[1664636398680,1.16962744,19330.0,19329.0,0.50784104]
[1664636399131,1.46684021,19330.0,19329.0,0.50784104]
[1664636399350,1.92064753,19330.0,19329.0,0.50784104]
[1664636399567,1.98064753,19330.0,19329.0,0.50784104]
[1664636399796,1.52684021,19330.0,19329.0,0.50784104]
[1664636400020,0.87173144,19330.0,19329.0,0.50784104]
[1664636400776,0.81173144,19330.0,19329.0,0.50784104]
[1664636401451,0.87173144,19330.0,19329.0,0.50784104]
[1664636402113,1.22962744,19330.0,19329.0,0.50784104]
[1664636402330,0.87173144,19330.0,19329.0,0.50784104]
[1664636402808,0.81173144,19330.0,19329.0,0.50784104]
[1664636403439,0.87173144,19330.0,19329.0,0.50784104]
[1664636403657,0.87173144,19330.0,19329.0,0.12923932]
[1664636404126,0.8789266,19330.0,19329.0,0.15786707]
[1664636404592,0.87089601,19330.0,19329.0,0.15786707]
[1664636404809,0.81089601,19330.0,19329.0,0.15786707]
[1664636405494,0.87089601,19330.0,19329.0,0.15786707]
[1664636406304,1.22879201,19330.0,19329.0,0.15786707]
[1664636406683,1.26470333,19330.0,19329.0,0.15786707]
[1664636406899,0.81089601,19330.0,19329.0,0.15786707]
[1664636407552,0.87089601,19330.0,19329.0,0.15786707]
[1664636408755,0.81089601,19330.0,19329.0,0.15786707]
[1664636409247,0.81089601,19330.0,19329.0,0.17987615]
[1664636409458,0.87089601,19330.0,19329.0,0.17987615]
[1664636410605,1.26470333,19330.0,19329.0,0.17987615]
[1664636410821,0.81089601,19330.0,19329.0,0.17987615]
[1664636411513,0.87089601,19330.0,19329.0,0.17987615]
[1664636412151,1.32470333,19330.0,19329.0,0.17987615]
[1664636412359,1.30965879,19330.0,19329.0,0.17987615]
[1664636412589,0.95176279,19330.0,19329.0,0.17987615]
[1664636412805,0.89176279,19330.0,19329.0,0.17987615]
[1664636413284,0.59176279,19330.0,19329.0,0.17987615]
[1664636413495,0.95176279,19330.0,19329.0,0.17987615]
[1664636414199,0.65176279,19330.0,19329.0,0.17987615]
[1664636414646,0.95176279,19330.0,19329.0,0.17987615]
[1664636415288,0.89176279,19330.0,19329.0,0.17987615]
[1664636415526,0.95176279,19330.0,19329.0,0.17987615]
[1664636416444,0.65176279,19330.0,19329.0,0.17987615]
[1664636416665,0.95176279,19330.0,19329.0,0.17987615]
[1664636417165,0.89176279,19330.0,19329.0,0.17987615]
[1664636417611,0.95176279,19330.0,19329.0,0.17987615]
[1664636419192,0.89176279,19330.0,19329.0,0.17987615]
[1664636419620,0.95176279,19330.0,19329.0,0.17987615]
[1664636420193,1.40557011,19330.0,19329.0,0.17987615]
[1664636420671,0.89176279,19330.0,19329.0,0.17987615]
[1664636421600,0.95176279,19330.0,19329.0,0.17987615]
[1664636422548,0.9516822,19330.0,19329.0,0.17987615]
[1664636422770,0.8916822,19330.0,19329.0,0.17987615]
[1664636423480,0.9516822,19330.0,19329.0,0.17987615]
[1664636424788,0.8916822,19330.0,19329.0,0.17987615]
[1664636425002,0.8916822,19330.0,19329.0,0.17888215]
[1664636425446,0.6516822,19330.0,19329.0,0.17888215]
[1664636425913,0.9516822,19330.0,19329.0,0.17888215]
[1664636426575,0.6516822,19330.0,19329.0,0.17888215]
[1664636426784,0.8916822,19330.0,19329.0,0.17888215]
[1664636427204,1.34548952,19330.0,19329.0,0.17888215]
[1664636427414,1.33548952,19330.0,19329.0,0.17888215]
[1664636427673,1.39548952,19330.0,19329.0,0.17888215]
[1664636428867,1.33548952,19330.0,19329.0,0.17888215]
[1664636428993,0.8816822,19330.0,19329.0,0.17888215]
[1664636429435,1.39548952,19330.0,19329.0,0.17888215]
[1664636429734,0.9416822,19330.0,19329.0,0.17888215]
[1664636430748,0.8816822,19330.0,19329.0,0.17888215]
[1664636431627,0.9416822,19330.0,19329.0,0.17888215]
[1664636432263,1.2995782,19330.0,19329.0,0.17888215]
[1664636432483,1.75338552,19330.0,19329.0,0.17888215]
[1664636432661,1.39548952,19330.0,19329.0,0.17888215]
[1664636432926,1.33548952,19330.0,19329.0,0.17888215]
[1664636433644,1.39548952,19330.0,19329.0,0.17888215]
[1664636434950,1.33548952,19330.0,19329.0,0.17888215]
[1664636435392,1.37601305,19330.0,19329.0,0.17888215]
[1664636435616,1.39548952,19330.0,19329.0,0.17888215]
[1664636435816,1.43601305,19330.0,19329.0,0.17888215]
[1664636436111,1.39548952,19330.0,19329.0,0.17888215]
[1664636436772,1.33548952,19330.0,19329.0,0.17888215]
[1664636437222,1.79469435,19330.0,19329.0,0.17888215]
[1664636437448,1.73390905,19330.0,19329.0,0.17888215]
[1664636437670,1.79390905,19330.0,19329.0,0.17888215]
[1664636437902,1.43601305,19330.0,19329.0,0.17888215]
[1664636438382,2.1068799,19330.0,19329.0,0.17888215]
[1664636438616,2.1068799,19330.0,19326.0,0.29450039]
[1664636438617,0.05,19328.0,19326.0,0.16506839]
[1664636438871,2.42590392,19327.0,19326.0,0.16506839]
[1664636439107,4.31195633,19327.0,19325.0,0.16513197]
[1664636439341,1.77425912,19326.0,19325.0,0.16513197]
[1664636439572,2.26113119,19326.0,19325.0,0.12950458]
[1664636439799,2.26113119,19326.0,19325.0,0.29457297]
[1664636439800,2.55412513,19326.0,19325.0,0.29457297]
[1664636440027,2.91202113,19326.0,19325.0,0.29457297]
[1664636440709,2.91873767,19326.0,19325.0,0.29457297]
[1664636441226,2.56084167,19326.0,19325.0,0.29457297]
[1664636441445,2.91873767,19326.0,19325.0,0.29457297]
[1664636441673,2.99773767,19326.0,19325.0,0.29457297]
[1664636442738,2.54434921,19326.0,19325.0,0.29457297]
[1664636442947,2.46534921,19326.0,19325.0,0.31822773]
[1664636443294,2.07727221,19326.0,19325.0,0.31822773]
[1664636443634,2.10627221,19326.0,19325.0,0.31822773]
[1664636444934,2.02727221,19326.0,19325.0,0.31822773]
[1664636445569,2.10127221,19326.0,19325.0,0.31822773]
[1664636446124,2.55466067,19326.0,19325.0,0.31822773]
[1664636446570,2.10127221,19326.0,19325.0,0.31822773]
[1664636446917,2.02727221,19326.0,19325.0,0.31822773]
[1664636447590,2.10627221,19326.0,19325.0,0.31822773]
[1664636448040,2.55966067,19326.0,19325.0,0.31822773]
[1664636448962,2.48066067,19326.0,19325.0,0.31816415]
[1664636449441,2.48049734,19326.0,19325.0,0.31816415]
[1664636449664,2.55949734,19326.0,19325.0,0.31816415]
[1664636450898,2.48049734,19326.0,19325.0,0.31816415]
[1664636451641,2.55949734,19326.0,19325.0,0.31816415]
[1664636452303,2.10610888,19326.0,19325.0,0.31816415]
[1664636452967,1.66921288,19326.0,19325.0,0.31816415]
[1664636453557,1.74821288,19326.0,19325.0,0.31816415]
[1664636453795,2.10610888,19326.0,19325.0,0.31816415]
[1664636454409,2.55949734,19326.0,19325.0,0.31816415]
[1664636454624,2.10610888,19326.0,19325.0,0.31816415]
[1664636455615,2.02710888,19326.0,19325.0,0.31816415]
[1664636455866,2.10610888,19326.0,19325.0,0.31816415]
[1664636456098,2.55949734,19326.0,19325.0,0.31816415]
[1664636457422,2.48049734,19326.0,19325.0,0.31816415]
[1664636457656,2.55949734,19326.0,19325.0,0.31816415]
[1664636458570,2.10610888,19326.0,19325.0,0.31816415]
[1664636459054,2.48049734,19326.0,19325.0,0.31816415]
[1664636459618,2.55949734,19326.0,19325.0,0.31816415]
[1664636461100,2.48049734,19326.0,19325.0,0.31816415]
[1664636461689,2.55949734,19326.0,19325.0,0.31816415]
[1664636462782,2.64039258,19326.0,19325.0,0.31816415]
[1664636462964,2.56139258,19326.0,19325.0,0.31816415]
[1664636463671,2.64039258,19326.0,19325.0,0.31816415]
[1664636464276,2.18700412,19326.0,19325.0,0.31816415]
[1664636464876,2.64039258,19326.0,19325.0,0.31816415]
[1664636465087,2.56139258,19326.0,19325.0,0.31816415]
[1664636465302,2.10800412,19326.0,19325.0,0.31816415]
[1664636465519,1.75010812,19326.0,19325.0,0.31816415]
[1664636465697,2.18700412,19326.0,19325.0,0.31816415]
[1664636465905,2.64039258,19326.0,19325.0,0.31816415]
[1664636466293,2.28249658,19326.0,19325.0,0.31816415]
[1664636466638,2.64039258,19326.0,19325.0,0.31816415]
[1664636466857,2.18700412,19326.0,19325.0,0.31816415]
[1664636467034,1.75010812,19326.0,19325.0,0.31816415]
[1664636467215,1.77451289,19326.0,19325.0,0.31816415]
[1664636467645,1.19561689,19326.0,19325.0,0.31816415]
[1664636467957,1.85351289,19326.0,19325.0,0.31816415]
[1664636468164,1.85351289,19326.0,19325.0,0.3181984]
[1664636468372,1.11472165,19326.0,19325.0,0.3181984]
[1664636468986,1.03572165,19326.0,19325.0,0.3181984]
[1664636469900,1.10972165,19326.0,19325.0,0.3181984]
[1664636471026,1.03572165,19326.0,19325.0,0.3181984]
[1664636471723,1.44061765,19326.0,19325.0,0.3181984]
[1664636471949,0.05371654,19326.0,19325.0,0.3181984]
[1664636472176,0.05371654,19326.0,19325.0,0.8163515]
[1664636472393,0.05371654,19326.0,19325.0,0.67779264]
[1664636472616,0.05371654,19326.0,19325.0,0.31989664]
[1664636473079,0.00671654,19326.0,19325.0,0.31989664]
[1664636473280,0.00671654,19326.0,19325.0,0.275132]
[1664636473724,0.08571654,19326.0,19325.0,0.275132]
[1664636473940,0.08571654,19326.0,19325.0,0.633028]
[1664636474223,0.08571654,19326.0,19325.0,0.275132]
[1664636475105,0.00671654,19326.0,19325.0,0.275132]
[1664636475762,0.08571654,19326.0,19325.0,0.275132]
[1664636476421,0.95534398,19326.0,19325.0,0.275132]
[1664636476675,0.89744798,19326.0,19325.0,0.275132]
[1664636477375,0.89744798,19326.0,19325.0,0.2750334]
[1664636477593,0.81844798,19326.0,19325.0,0.2750334]
[1664636477812,0.89744798,19326.0,19325.0,0.2750334]
[1664636479105,0.81844798,19326.0,19325.0,0.2750334]
[1664636479717,0.89744798,19326.0,19325.0,0.2750334]
[1664636481057,0.81844798,19326.0,19325.0,0.2750334]
[1664636481747,0.51844798,19326.0,19325.0,0.2750334]
[1664636481962,0.89744798,19326.0,19325.0,0.2750334]
[1664636482624,0.59744798,19326.0,19325.0,0.2750334]
[1664636482964,0.81844798,19326.0,19325.0,0.2750334]
[1664636483688,0.51844798,19326.0,19325.0,0.2750334]
[1664636483901,0.59744798,19326.0,19325.0,0.2750334]
[1664636484925,0.97183644,19326.0,19325.0,0.2750334]
[1664636485328,0.81844798,19326.0,19325.0,0.2750334]
[1664636485799,0.89744798,19326.0,19325.0,0.2750334]
[1664636486418,1.57712967,19326.0,19325.0,0.2750334]
[1664636486634,1.93502567,19326.0,19325.0,0.2750334]
[1664636486926,1.12374121,19326.0,19325.0,0.2750334]
[1664636487097,1.04474121,19326.0,19325.0,0.2750334]
[1664636487547,1.04474121,19326.0,19325.0,0.1455924]
[1664636487548,2.08604689,19326.0,19325.0,0.1455924]
[1664636487781,2.0840512,19326.0,19325.0,0.1455924]
[1664636488007,2.3102748,19326.0,19325.0,0.1455924]
[1664636488136,2.22927911,19326.0,19325.0,0.1455924]
[1664636488996,2.31024289,19326.0,19325.0,0.1455924]
[1664636489216,2.23124289,19326.0,19325.0,0.1455924]
[1664636489921,2.26924289,19326.0,19325.0,0.1455924]
[1664636490399,2.26924289,19326.0,19322.0,0.0011]
[1664636490400,0.1720176,19325.0,19322.0,0.0011]
[1664636490621,0.74387528,19323.0,19322.0,0.0011]
[1664636490843,1.94492549,19323.0,19322.0,0.0011]
[1664636491081,1.82103861,19323.0,19322.0,0.0011]
[1664636491558,1.86151484,19323.0,19322.0,0.0011]
[1664636491770,2.16485247,19323.0,19322.0,0.0011]
[1664636492009,2.20335069,19323.0,19322.0,0.0011]
[1664636492250,2.16290002,19323.0,19322.0,0.0011]
[1664636492510,0.05,19321.0,19320.0,0.0011]
[1664636492726,2.52932253,19321.0,19320.0,0.0011]
[1664636492954,0.05,19320.0,19318.0,0.0011]
[1664636493178,1.71697285,19320.0,19318.0,0.0011]
[1664636493445,2.04789699,19320.0,19318.0,0.0011]
[1664636493669,2.04789699,19320.0,19319.0,0.0061]
[1664636493895,2.09361353,19320.0,19319.0,0.0061]
[1664636494343,2.09361311,19320.0,19319.0,0.0061]
[1664636494607,2.13405934,19320.0,19319.0,0.0061]
[1664636494836,1.67505024,19320.0,19319.0,0.0061]
[1664636495068,2.09361119,19320.0,19319.0,0.0061]
[1664636495298,2.05461119,19320.0,19319.0,0.0061]
[1664636495531,1.9630221,19320.0,19319.0,0.0061]
[1664636495748,1.62258114,19320.0,19319.0,0.0061]
[1664636495972,1.76768705,19320.0,19319.0,0.0061]
[1664636496226,1.7070221,19320.0,19319.0,0.0061]
[1664636496444,1.66658114,19320.0,19319.0,0.0061]
[1664636496865,1.30868514,19320.0,19319.0,0.01133777]
[1664636497149,1.92258114,19320.0,19319.0,0.01133777]
[1664636497804,1.92258114,19320.0,19319.0,0.01744431]
[1664636498010,1.96658114,19320.0,19319.0,0.01744431]
[1664636499072,1.92258114,19320.0,19319.0,0.01744431]
[1664636500013,1.98458114,19320.0,19319.0,0.01744431]
[1664636501423,1.92258114,19320.0,19319.0,0.01744431]
[1664636501883,1.62668514,19320.0,19319.0,0.01744431]
[1664636502127,1.98458114,19320.0,19319.0,0.01744431]
[1664636503260,1.92258114,19320.0,19319.0,0.01744431]
[1664636503954,1.98458114,19320.0,19319.0,0.01744431]
[1664636504176,1.18223676,19320.0,19319.0,0.01744431]
[1664636504399,0.82434076,19320.0,19319.0,0.01744431]
[1664636504617,1.18223676,19320.0,19319.0,0.01744431]
[1664636504869,1.17483676,19320.0,19319.0,0.01744431]
[1664636505310,1.11283676,19320.0,19319.0,0.01744431]
[1664636505996,1.45383676,19320.0,19319.0,0.01744431]
[1664636506465,1.90618114,19320.0,19319.0,0.01744431]
[1664636507074,1.86518114,19320.0,19319.0,0.01744431]
[1664636507900,1.90918114,19320.0,19319.0,0.01744431]
[1664636508622,1.45683676,19320.0,19319.0,0.01744431]